fUST/lending_fUST_20250817
["ID","MTS","AMOUNT","RATE_DAILY","PERIOD"]
[379705326,1755377447091,-480.0,0.00020432,2]
[379705328,1755377447101,-480.0,0.00020432,2]
[379705330,1755377447110,-866.67,0.00020432,2]
[379705332,1755377447119,-442.06785248,0.00020432,2]
[379705334,1755377447128,-480.0,0.00020432,2]
[379705336,1755377447137,-758.03,0.00020432,2]
[379705338,1755377447146,-440.78657686,0.00020432,2]
[379705340,1755377447156,-480.0,0.00020432,2]
[379705342,1755377447165,-757.7,0.00020432,2]
[379705344,1755377447174,-440.0,0.00020432,2]
[379705346,1755377447183,-480.0,0.00020432,2]
[379705348,1755377447192,-480.0,0.00020432,2]
[379705350,1755377447202,-480.0,0.00020432,2]
[379705352,1755377447211,-460.0,0.00020432,2]
[379705354,1755377447221,-460.0,0.00020432,2]
[379705356,1755377447230,-347.91293757,0.00020432,2]
[379705359,1755377447256,-480.0,0.00020432,2]
[379705362,1755377447280,-6017.76,0.00020432,2]
[379705363,1755377447299,-480.0,0.00020432,2]
[379705365,1755377447313,-1828.0,0.00020432,2]
[379705367,1755377447322,-151.0,0.00020432,2]
[379705369,1755377447332,-480.0,0.00020432,2]
[379705371,1755377447341,-480.0,0.00020432,2]
[379705373,1755377447350,-480.0,0.00020432,2]
[379705375,1755377447360,-504.7,0.00020432,2]
[379705377,1755377447369,-480.0,0.00020432,2]
[379705379,1755377447379,-480.0,0.00020432,2]
[379705381,1755377447388,-480.0,0.00020432,2]
[379705383,1755377447397,-1067.99,0.00020432,2]
[379705385,1755377447406,-1328.49,0.00020432,2]
[379705387,1755377447415,-460.0,0.00020432,2]
[379705389,1755377447424,-542.05,0.00020432,2]
[379705391,1755377447434,-480.0,0.00020432,2]
[379705393,1755377447443,-460.0,0.00020432,2]
[379705395,1755377447452,-435.77248614,0.00020432,2]
[379705397,1755377447461,-460.0,0.00020432,2]
[379705399,1755377447470,-480.0,0.00020432,2]
[379705401,1755377447480,-280.333419,0.00020432,2]
[379705403,1755377447489,-763.06,0.00020432,2]
[379705405,1755377447499,-480.0,0.00020432,2]
[379705407,1755377447510,-480.0,0.00020432,2]
[379705409,1755377447519,-480.0,0.00020432,2]
[379705411,1755377447529,-440.0,0.00020432,2]
[379705413,1755377447540,-487.86,0.00020432,2]
[379705415,1755377447550,-480.0,0.00020432,2]
[379705417,1755377447560,-515.9,0.00020432,2]
[379705419,1755377447569,-515.9,0.00020432,2]
[379705421,1755377447579,-515.9,0.00020432,2]
[379705423,1755377447588,-515.9,0.00020432,2]
[379705425,1755377447598,-515.9,0.00020432,2]
[379705427,1755377447607,-515.9,0.00020432,2]
[379705429,1755377447617,-515.9,0.00020432,2]
[379705431,1755377447626,-480.0,0.00020432,2]
[379705432,1755377447635,-1131.85,0.00020432,2]
[379705434,1755377447644,-480.0,0.00020432,2]
[379705437,1755377447654,-480.0,0.00020432,2]
[379705439,1755377447664,-480.0,0.00020432,2]
[379705441,1755377447674,-420.0,0.00020432,2]
[379705443,1755377447684,-480.0,0.00020432,2]
[379705445,1755377447693,-993.99,0.00020432,2]
[379705447,1755377447703,-723.33,0.00020432,2]
[379705449,1755377447715,-216.37818027,0.00020432,2]
[379705451,1755377447727,-1209.54,0.00020432,2]
[379705452,1755377447735,-872.26,0.00020432,2]
[379705454,1755377447745,-480.0,0.00020432,2]
[379705456,1755377447755,-480.0,0.00020432,2]
[379705458,1755377447764,-795.91,0.00020432,2]
[379705460,1755377447773,-622.7,0.00020432,2]
[379705462,1755377447783,-1312.48,0.00020432,2]
[379705465,1755377447793,-480.0,0.00020432,2]
[379705466,1755377447803,-480.0,0.00020432,2]
[379705468,1755377447811,-1015.01,0.00020432,2]
[379705470,1755377447820,-535.29,0.00020432,2]
[379705472,1755377447829,-772.23,0.00020432,2]
[379705474,1755377447839,-151.0,0.00020432,2]
[379705476,1755377447847,-1030.57,0.00020432,2]
[379705478,1755377447856,-1332.15,0.00020432,2]
[379705480,1755377447865,-829.02,0.00020432,2]
[379705482,1755377447874,-793.16,0.00020432,2]
[379705484,1755377447883,-480.0,0.00020432,2]
[379705486,1755377447892,-515.62,0.00020432,2]
[379705488,1755377447901,-480.0,0.00020432,2]
[379705490,1755377447910,-480.0,0.00020432,2]
[379705492,1755377447919,-480.0,0.00020432,2]
[379705494,1755377447928,-480.0,0.00020432,2]
[379705496,1755377447937,-923.85,0.00020432,2]
[379705498,1755377447946,-1288.62,0.00020432,2]
[379705500,1755377447956,-1288.62,0.00020432,2]
[379705502,1755377447965,-1288.62,0.00020432,2]
[379705504,1755377447974,-1288.62,0.00020432,2]
[379705506,1755377447984,-1288.62,0.00020432,2]
[379705508,1755377447993,-1288.69306053,0.00020432,2]
[379705510,1755377448002,-510.45,0.00020432,2]
[379705512,1755377448012,-480.0,0.00020432,2]
[379705514,1755377448021,-480.0,0.00020432,2]
[379705516,1755377448031,-617.19,0.00020432,2]
[379705518,1755377448040,-617.19,0.00020432,2]
[379705520,1755377448050,-617.19,0.00020432,2]
[379705522,1755377448059,-617.19,0.00020432,2]
[379705524,1755377448070,-617.19,0.00020432,2]
[379705526,1755377448079,-617.33052485,0.00020432,2]
[379705528,1755377448088,-480.0,0.00020432,2]
[379705530,1755377448098,-2299.76,0.00020432,2]
[379705532,1755377448108,-480.0,0.00020432,2]
[379705534,1755377448118,-11198.0,0.00020432,2]
[379705536,1755377448127,-367.72777697,0.00020432,2]
[379705538,1755377448136,-480.0,0.00020432,2]
[379705540,1755377448145,-480.0,0.00020432,2]
[379705542,1755377448155,-4358.2,0.00020432,2]
[379705544,1755377448165,-480.0,0.00020432,2]
[379705546,1755377448174,-420.0,0.00020432,2]
[379705548,1755377448184,-480.0,0.00020432,2]
[379705550,1755377448194,-1115.72,0.00020432,2]
[379705552,1755377448204,-480.0,0.00020432,2]
[379705554,1755377448213,-521.49,0.00020432,2]
[379705556,1755377448223,-480.0,0.00020432,2]
[379705558,1755377448233,-480.0,0.00020432,2]
[379705560,1755377448243,-3223.97,0.00020432,2]
[379705562,1755377448252,-480.0,0.00020432,2]
[379705564,1755377448262,-480.0,0.00020432,2]
[379705566,1755377448271,-1480.48,0.00020432,2]
[379705568,1755377448281,-380.0,0.00020432,2]
[379705570,1755377448290,-225.0099194,0.00020432,2]
[379705572,1755377448300,-480.0,0.00020432,2]
[379705574,1755377448310,-786.28,0.00020432,2]
[379705576,1755377448320,-480.0,0.00020432,2]
[379705578,1755377448329,-1203.56,0.00020432,2]
[379705580,1755377448339,-535.65,0.00020432,2]
[379705582,1755377448348,-480.0,0.00020432,2]
[379705584,1755377448357,-401.10288567,0.00020432,2]
[379705586,1755377448366,-480.0,0.00020432,2]
[379705588,1755377448375,-193.754519,0.00020432,2]
[379705590,1755377448385,-773.99,0.00020432,2]
[379705592,1755377448396,-193.754519,0.00020432,2]
[379705595,1755377448406,-480.0,0.00020432,2]
[379705597,1755377448415,-2255.21,0.00020432,2]
[379705599,1755377448425,-505.77619203,0.00020432,2]
[379705601,1755377448435,-480.0,0.00020432,2]
[379705603,1755377448444,-480.0,0.00020432,2]
[379705605,1755377448454,-480.0,0.00020432,2]
[379705606,1755377448463,-480.0,0.00020432,2]
[379705609,1755377448472,-771.06,0.00020432,2]
[379705611,1755377448482,-480.0,0.00020432,2]
[379705612,1755377448491,-470.88975917,0.00020432,2]
[379705615,1755377448501,-848.97,0.00020432,2]
[379705616,1755377448510,-480.0,0.00020432,2]
[379705618,1755377448519,-480.0,0.00020432,2]
[379705621,1755377448530,-480.0,0.00020432,2]
[379705623,1755377448540,-480.0,0.00020432,2]
[379705625,1755377448549,-480.0,0.00020432,2]
[379705627,1755377448559,-2604.03,0.00020432,2]
[379705628,1755377448568,-512.48,0.00020432,2]
[379705630,1755377448578,-1092.56,0.00020432,2]
[379705633,1755377448587,-400.0,0.00020432,2]
[379705635,1755377448597,-480.0,0.00020432,2]
[379705636,1755377448606,-783.0,0.00020432,2]
[379705639,1755377448616,-1096.81,0.00020432,2]
[379705640,1755377448625,-480.0,0.00020432,2]
[379705643,1755377448635,-588.94,0.00020432,2]
[379705645,1755377448644,-151.0,0.00020432,2]
[379705646,1755377448654,-420.0,0.00020432,2]
[379705648,1755377448664,-572.9,0.00020432,2]
[379705650,1755377448673,-685.01,0.00020432,2]
[379705653,1755377448683,-860.44,0.00020432,2]
[379705654,1755377448693,-480.0,0.00020432,2]
[379705656,1755377448702,-565.09,0.00020432,2]
[379705658,1755377448711,-480.0,0.00020432,2]
[379705660,1755377448724,-480.0,0.00020432,2]
[379705662,1755377448734,-615.56,0.00020432,2]
[379705665,1755377448743,-460.0,0.00020432,2]
[379705666,1755377448753,-500.0,0.00020432,2]
[379705668,1755377448763,-151.0,0.00020433,2]
[379705671,1755377448772,-151.0,0.00020433,2]
[379705672,1755377448781,-154.69975414,0.00020433,2]
[379705675,1755377448791,-500.0,0.00020433,2]
[379705676,1755377448801,-198.0,0.00020433,2]
[379705678,1755377448811,-151.0,0.00020433,2]
[379705681,1755377448821,-151.0,0.00020433,2]
[379705682,1755377448831,-151.0,0.00020433,2]
[379705684,1755377448840,-151.0,0.00020433,2]
[379705686,1755377448850,-292.0,0.00020433,2]
[379705688,1755377448860,-1100.0,0.00020433,2]
[379705690,1755377448870,-151.0,0.00020433,2]
[379705692,1755377448879,-151.0,0.00020433,2]
[379705694,1755377448889,-151.0,0.00020433,2]
[379705696,1755377448898,-503.32751794,0.00020433,2]
[379705698,1755377448908,-157.42136221,0.00020433,2]
[379705700,1755377448918,-151.0,0.00020433,2]
[379705702,1755377448927,-151.0,0.00020433,2]
[379705704,1755377448937,-151.0,0.00020433,2]
[379705706,1755377448947,-151.0,0.00020433,2]
[379705708,1755377448957,-151.0,0.00020433,2]
[379705710,1755377448966,-253.46814,0.00020433,2]
[379705712,1755377448976,-151.0,0.00020433,2]
[379705714,1755377448985,-377.298241,0.00020433,2]
[379705716,1755377448995,-164.933933,0.00020433,2]
[379705718,1755377449004,-164.933933,0.00020433,2]
[379705720,1755377449014,-377.298241,0.00020433,2]
[379705722,1755377449023,-164.933933,0.00020433,2]
[379705724,1755377449033,-164.933933,0.00020433,2]
[379705726,1755377449042,-152.92996,0.00020433,2]
[379705728,1755377449051,-151.0,0.00020433,2]
[379705730,1755377449061,-725.135236,0.00020433,2]
[379705733,1755377449071,-725.135236,0.00020433,2]
[379705735,1755377449080,-725.135236,0.00020433,2]
[379705737,1755377449090,-725.135236,0.00020433,2]
[379705739,1755377449099,-151.0,0.00020433,2]
[379705741,1755377449109,-151.0,0.00020433,2]
[379705743,1755377449118,-151.0,0.00020433,2]
[379705745,1755377449127,-151.0,0.00020433,2]
[379705747,1755377449137,-151.0,0.00020433,2]
[379705749,1755377449147,-151.0,0.00020433,2]
[379705751,1755377449156,-420.0,0.00020433,2]
[379705753,1755377449166,-152.920102,0.00020433,2]
[379705755,1755377449175,-152.920102,0.00020433,2]
[379705757,1755377449184,-152.920102,0.00020433,2]
[379705759,1755377449194,-152.920102,0.00020433,2]
[379705761,1755377449203,-480.0,0.00020433,2]
[379705763,1755377449213,-496.360995,0.00020433,2]
[379705765,1755377449222,-496.360995,0.00020433,2]
[379705767,1755377449232,-496.360995,0.00020433,2]
[379705769,1755377449241,-496.360995,0.00020433,2]
[379705771,1755377449251,-151.0,0.00020433,2]
[379705773,1755377449260,-151.0,0.00020433,2]
[379705775,1755377449269,-226.140573,0.00020433,2]
[379705777,1755377449279,-226.140573,0.00020433,2]
[379705779,1755377449288,-247.378836,0.00020433,2]
[379705781,1755377449297,-247.378836,0.00020433,2]
[379705783,1755377449306,-980.18,0.00020433,2]
[379705785,1755377449315,-460.0,0.00020433,2]
[379705787,1755377449325,-480.0,0.00020433,2]
[379705789,1755377449334,-480.0,0.00020433,2]
[379705791,1755377449343,-480.0,0.00020433,2]
[379705793,1755377449353,-480.0,0.00020433,2]
[379705795,1755377449362,-480.0,0.00020433,2]
[379705797,1755377449371,-440.0,0.00020433,2]
[379705799,1755377449381,-480.0,0.00020433,2]
[379705801,1755377449390,-480.0,0.00020433,2]
[379705803,1755377449403,-480.0,0.00020433,2]
[379705805,1755377449412,-480.0,0.00020433,2]
[379705807,1755377449421,-480.0,0.00020433,2]
[379705809,1755377449431,-151.0,0.00020433,2]
[379705811,1755377449442,-480.0,0.00020433,2]
[379705813,1755377449452,-151.0,0.00020433,2]
[379705815,1755377449461,-480.0,0.00020433,2]
[379705817,1755377449470,-264.47402307,0.00020433,2]
[379705819,1755377449480,-480.0,0.00020433,2]
[379705821,1755377449489,-460.0,0.00020433,2]
[379705823,1755377449499,-480.0,0.00020433,2]
[379705825,1755377449508,-480.0,0.00020433,2]
[379705827,1755377449517,-480.0,0.00020433,2]
[379705829,1755377449527,-480.0,0.00020433,2]
[379705831,1755377449536,-480.0,0.00020433,2]
[379705833,1755377449545,-620.96,0.00020433,2]
[379705835,1755377449554,-181.08672595,0.00020433,2]
[379705837,1755377449565,-353.55281251,0.00020433,2]
[379705839,1755377449574,-152.578912,0.00020433,2]
[379705841,1755377449584,-295.71765939,0.00020433,2]
[379705843,1755377449593,-480.0,0.00020433,2]
[379705845,1755377449602,-480.0,0.00020433,2]
[379705847,1755377449612,-480.0,0.00020433,2]
[379705850,1755377449621,-480.0,0.00020433,2]
[379705852,1755377449631,-480.0,0.00020433,2]
[379705854,1755377449639,-480.0,0.00020433,2]
[379705856,1755377449649,-480.0,0.00020433,2]
[379705857,1755377449658,-480.0,0.00020433,2]
[379705859,1755377449667,-735.06,0.00020433,2]
[379705860,1755377449684,-480.0,0.00020433,2]
[379705861,1755377449693,-480.0,0.00020433,2]
[379705862,1755377449702,-480.0,0.00020433,2]
[379705863,1755377449711,-652.24,0.00020433,2]
[379705864,1755377449726,-480.0,0.00020433,2]
[379705865,1755377449735,-480.0,0.00020433,2]
[379705866,1755377449744,-508.6,0.00020433,2]
[379705867,1755377449762,-480.0,0.00020433,2]
[379705868,1755377449773,-480.0,0.00020433,2]
[379705869,1755377449782,-2003.287501,0.00020433,2]
[379705870,1755377449791,-480.0,0.00020433,2]
[379705871,1755377449800,-480.0,0.00020433,2]
[379705872,1755377449810,-2003.287501,0.00020433,2]
[379705873,1755377449819,-480.0,0.00020433,2]
[379705874,1755377449828,-480.0,0.00020433,2]
[379705875,1755377449838,-480.0,0.00020433,2]
[379705876,1755377449849,-480.0,0.00020433,2]
[379705877,1755377449859,-480.0,0.00020433,2]
[379705878,1755377449869,-441.95055698,0.00020433,2]
[379705879,1755377449878,-500.0,0.00020433,2]
[379705880,1755377449888,-480.0,0.00020433,2]
[379705881,1755377449897,-480.0,0.00020433,2]
[379705882,1755377449907,-480.0,0.00020433,2]
[379705883,1755377449917,-480.0,0.00020433,2]
[379705884,1755377449926,-460.0,0.00020433,2]
[379705885,1755377449936,-480.0,0.00020433,2]
[379705886,1755377449945,-480.0,0.00020433,2]
[379705887,1755377449956,-151.0,0.00020433,2]
[379705888,1755377449966,-480.0,0.00020433,2]
[379705889,1755377449975,-380.0,0.00020433,2]
[379705890,1755377449985,-480.0,0.00020433,2]
[379705891,1755377449994,-700.53,0.00020433,2]
[379705892,1755377450004,-480.0,0.00020433,2]
[379705893,1755377450014,-460.0,0.00020433,2]
[379705894,1755377450023,-284.50945,0.00020433,2]
[379705895,1755377450164,-480.0,0.00020433,2]
[379705896,1755377450177,-480.0,0.00020433,2]
[379705897,1755377450187,-652.037804,0.00020433,2]
[379705898,1755377450197,-480.0,0.00020433,2]
[379705899,1755377450206,-887.43,0.00020433,2]
[379705900,1755377450216,-480.0,0.00020433,2]
[379705901,1755377450226,-652.037804,0.00020433,2]
[379705902,1755377450236,-691.63,0.00020433,2]
[379705903,1755377450246,-513.19,0.00020433,2]
[379705904,1755377450256,-480.0,0.00020433,2]
[379705905,1755377450265,-851.69,0.00020433,2]
[379705906,1755377450275,-151.0,0.00020433,2]
[379705907,1755377450284,-151.0,0.00020433,2]
[379705908,1755377450293,-480.0,0.00020433,2]
[379705909,1755377450302,-480.0,0.00020433,2]
[379705910,1755377450311,-480.0,0.00020433,2]
[379705911,1755377450320,-480.0,0.00020433,2]
[379705912,1755377450330,-480.0,0.00020433,2]
[379705913,1755377450339,-441.38223423,0.00020433,2]
[379705914,1755377450555,-603.38,0.00020433,2]
[379705915,1755377450565,-480.0,0.00020433,2]
[379705916,1755377450575,-480.0,0.00020433,2]
[379705917,1755377450584,-10981.53,0.00020433,2]
[379705918,1755377450594,-440.0,0.00020433,2]
[379705919,1755377450603,-164.769487,0.00020433,2]
[379705920,1755377450612,-320.0,0.00020433,2]
[379705921,1755377450622,-164.769487,0.00020433,2]
[379705922,1755377450631,-480.0,0.00020433,2]
[379705923,1755377450640,-480.0,0.00020433,2]
[379705924,1755377450650,-441.70553419,0.00020433,2]
[379705925,1755377450659,-1711.57,0.00020433,2]
[379705926,1755377450669,-480.0,0.00020433,2]
[379705927,1755377450679,-151.0,0.00020433,2]
[379705929,1755377450688,-362.01805003,0.00020433,2]
[379705930,1755377450698,-408.27380012,0.00020433,2]
[379705931,1755377450707,-1936.76,0.00020433,2]
[379705932,1755377450721,-662.85,0.00020433,2]
[379705934,1755377450731,-480.0,0.00020433,2]
[379705935,1755377450742,-1000.0,0.00020433,2]
[379705936,1755377450752,-1000.0,0.00020433,2]
[379705937,1755377450762,-1000.0,0.00020433,2]
[379705938,1755377450772,-1000.0,0.00020433,2]
[379705939,1755377450789,-1000.0,0.00020433,2]
[379705940,1755377450799,-480.0,0.00020433,2]
[379705941,1755377450809,-722.48,0.00020433,2]
[379705942,1755377450819,-480.0,0.00020433,2]
[379705943,1755377450829,-480.0,0.00020433,2]
[379705944,1755377450840,-480.0,0.00020433,2]
[379705945,1755377450856,-515.9,0.00020433,2]
[379705946,1755377450866,-883.69,0.00020433,2]
[379705947,1755377450875,-480.0,0.00020433,2]
[379705948,1755377450884,-480.0,0.00020433,2]
[379705949,1755377450894,-480.0,0.00020433,2]
[379705950,1755377450903,-556.16,0.00020433,2]
[379705951,1755377450913,-440.0,0.00020433,2]
[379705952,1755377450923,-4000.54,0.00020433,2]
[379705953,1755377450934,-480.0,0.00020433,2]
[379705954,1755377450943,-480.0,0.00020433,2]
[379705955,1755377450953,-480.0,0.00020433,2]
[379705956,1755377450964,-8437.53,0.00020433,2]
[379705957,1755377450973,-480.0,0.00020433,2]
[379705958,1755377450983,-460.0,0.00020433,2]
[379705959,1755377450992,-193.754519,0.00020433,2]
[379705960,1755377451002,-193.754519,0.00020433,2]
[379705961,1755377451011,-480.0,0.00020433,2]
[379705962,1755377451021,-480.0,0.00020433,2]
[379705963,1755377451031,-480.0,0.00020433,2]
[379705964,1755377451040,-526.04,0.00020433,2]
[379705965,1755377451049,-4308.84,0.00020433,2]
[379705966,1755377451059,-480.0,0.00020433,2]
[379705967,1755377451068,-480.0,0.00020433,2]
[379705968,1755377451078,-1553.89,0.00020433,2]
[379705969,1755377451088,-491.93,0.00020433,2]
[379705970,1755377451097,-151.0,0.00020433,2]
[379705971,1755377451107,-480.0,0.00020433,2]
[379705972,1755377451116,-480.0,0.00020433,2]
[379705973,1755377451126,-1150.12,0.00020433,2]
[379705974,1755377451135,-151.0,0.00020434,2]
[379705975,1755377451144,-151.0,0.00020434,2]
[379705976,1755377451154,-151.0,0.00020434,2]
[379705977,1755377451163,-151.0,0.00020434,2]
[379705978,1755377451172,-377.298241,0.00020434,2]
[379705979,1755377451182,-377.298241,0.00020434,2]
[379705980,1755377451191,-229.681265,0.00020434,2]
[379705981,1755377451200,-151.0,0.00020434,2]
[379705982,1755377451209,-151.0,0.00020434,2]
[379705983,1755377451218,-151.0,0.00020434,2]
[379705984,1755377451228,-151.0,0.00020434,2]
[379705985,1755377451237,-1000.0,0.00020434,2]
[379705986,1755377451247,-1000.0,0.00020434,2]
[379705987,1755377451257,-515.9,0.00020434,2]
[379705988,1755377451268,-515.9,0.00020434,2]
[379705989,1755377451278,-515.9,0.00020434,2]
[379705990,1755377451287,-515.9,0.00020434,2]
[379705991,1755377451297,-515.9,0.00020434,2]
[379705992,1755377451306,-151.0,0.00020435,2]
[379705993,1755377451316,-151.0,0.00020435,2]
[379705994,1755377451326,-151.0,0.00020435,2]
[379705995,1755377451335,-151.0,0.00020435,2]
[379705996,1755377451345,-239.077065,0.00020435,2]
[379705997,1755377451354,-239.077065,0.00020435,2]
[379705998,1755377451364,-151.0,0.00020435,2]
[379705999,1755377451374,-151.0,0.00020435,2]
[379706000,1755377451384,-151.0,0.00020435,2]
[379706001,1755377451393,-151.0,0.00020435,2]
[379706002,1755377451402,-151.0,0.00020435,2]
[379706003,1755377451412,-151.0,0.00020435,2]
[379706004,1755377451421,-151.0,0.00020435,2]
[379706005,1755377451430,-164.933933,0.00020435,2]
[379706006,1755377451439,-164.933933,0.00020435,2]
[379706007,1755377451449,-725.135236,0.00020435,2]
[379706008,1755377451459,-725.135236,0.00020435,2]
[379706009,1755377451468,-151.0,0.00020435,2]
[379706010,1755377451478,-151.0,0.00020435,2]
[379706011,1755377451487,-151.0,0.00020435,2]
[379706012,1755377451496,-152.920102,0.00020435,2]
[379706013,1755377451506,-152.920102,0.00020435,2]
[379706014,1755377451516,-496.360995,0.00020435,2]
[379706015,1755377451526,-496.360995,0.00020435,2]
[379706016,1755377451535,-151.0,0.00020435,2]
[379706017,1755377451545,-184.27139,0.00020435,2]
[379706018,1755377451554,-226.140573,0.00020435,2]
[379706019,1755377451564,-226.140573,0.00020435,2]
[379706020,1755377451573,-247.378836,0.00020435,2]
[379706021,1755377451583,-247.378836,0.00020435,2]
[379706022,1755377451592,-480.0,0.00020435,2]
[379706023,1755377451601,-480.0,0.00020435,2]
[379706024,1755377451610,-480.0,0.00020435,2]
[379706025,1755377451620,-480.0,0.00020435,2]
[379706026,1755377451629,-151.0,0.00020435,2]
[379706027,1755377451639,-151.0,0.00020435,2]
[379706028,1755377451648,-2003.287501,0.00020435,2]
[379706029,1755377451657,-2003.287501,0.00020435,2]
[379706030,1755377451666,-652.037804,0.00020435,2]
[379706031,1755377451676,-652.037804,0.00020435,2]
[379706032,1755377451685,-164.769487,0.00020435,2]
[379706033,1755377451694,-164.769487,0.00020435,2]
[379706034,1755377451704,-206.0,0.0002046,2]
[379706035,1755377451715,-420.6291706,0.00020469,2]
[379706036,1755377451727,-520.92936452,0.00020473,2]
[379706037,1755377451736,-500.0,0.00020473,2]
[379706038,1755377451746,-500.0,0.00020473,2]
[379706039,1755377451755,-500.0,0.00020473,2]
[379706040,1755377451766,-349.78746667,0.00020473,2]
[379706041,1755377451775,-500.0,0.00020473,2]
[379706042,1755377451785,-500.0,0.00020473,2]
[379706043,1755377451795,-500.0,0.00020473,2]
[379706044,1755377451805,-261.60064091,0.00020473,2]
[379706045,1755377451815,-500.0,0.00020473,2]
[379706046,1755377451824,-500.0,0.00020473,2]
[379706047,1755377451834,-500.0,0.00020473,2]
[379706048,1755377451844,-500.0,0.00020473,2]
[379706049,1755377451853,-193.754519,0.00020473,2]
[379706050,1755377451863,-193.754519,0.00020473,2]
[379706051,1755377451873,-151.0,0.00020473,2]
[379706052,1755377451883,-153.0,0.000205,2]
[379706053,1755377451894,-153.0,0.000205,2]
[379706054,1755377451904,-153.0,0.000205,2]
[379706055,1755377451913,-151.0,0.000205,3]
[379706056,1755377451923,-151.0,0.000205,4]
[379706057,1755377451932,-515.9,0.00020535,2]
[379706058,1755377451942,-151.0,0.00020536,2]
[379706059,1755377451951,-151.0,0.00020536,2]
[379706060,1755377451961,-151.0,0.00020536,2]
[379706061,1755377451970,-151.0,0.00020536,2]
[379706062,1755377451979,-377.298241,0.00020536,2]
[379706063,1755377451989,-377.298241,0.00020536,2]
[379706064,1755377451998,-151.0,0.00020536,2]
[379706065,1755377452008,-226.140573,0.00020536,2]
[379706066,1755377452018,-226.140573,0.00020536,2]
[379706067,1755377452027,-247.378836,0.00020536,2]
[379706068,1755377452036,-247.378836,0.00020536,2]
[379706069,1755377452045,-151.0,0.00020536,2]
[379706070,1755377452055,-151.0,0.00020536,2]
[379706071,1755377452065,-2003.287501,0.00020536,2]
[379706072,1755377452074,-2003.287501,0.00020536,2]
[379706073,1755377452083,-200.0,0.00020561,20]
[379706074,1755377452093,-200.0,0.00020561,20]
[379706075,1755377452103,-200.0,0.00020561,20]
[379706076,1755377452112,-200.0,0.00020561,20]
[379706077,1755377452122,-200.0,0.00020561,20]
[379706078,1755377452131,-200.0,0.00020561,20]
[379706079,1755377452142,-200.0,0.00020561,20]
[379706080,1755377452151,-200.0,0.00020561,20]
[379706081,1755377452161,-200.0,0.00020561,20]
[379706082,1755377452171,-200.0,0.00020561,20]
[379706083,1755377452180,-600.0,0.00020562,20]
[379706084,1755377452190,-160.0,0.00020564,2]
[379706085,1755377452200,-417.15472785,0.00020564,2]
[379706086,1755377452210,-462.1417622,0.00020564,2]
[379706087,1755377452219,-160.0,0.00020566,2]
[379706088,1755377452229,-160.0,0.00020566,2]
[379706089,1755377452239,-160.0,0.00020566,2]
[379706090,1755377452248,-232.11368524,0.00020567,2]
[379706091,1755377452257,-160.0,0.00020567,2]
[379706092,1755377452267,-160.0,0.00020567,2]
[379706093,1755377452277,-160.0,0.00020567,2]
[379706094,1755377452286,-160.0,0.00020567,2]